fUST/lending_fUST_20250124
["ID","MTS","AMOUNT","RATE_DAILY","PERIOD"]
[350204135,1737688246578,-500.0,0.00019452,3]
[350204137,1737688246587,-308.36,0.00019452,3]
[350204139,1737688246596,-500.0,0.00019452,3]
[350204141,1737688246606,-500.0,0.00019452,3]
[350204143,1737688246614,-500.0,0.00019452,3]
[350204145,1737688246624,-500.0,0.00019452,3]
[350204147,1737688246634,-500.0,0.00019452,3]
[350204149,1737688246644,-500.0,0.00019452,3]
[350204151,1737688246653,-500.0,0.00019452,3]
[350204153,1737688246662,-500.0,0.00019452,3]
[350204155,1737688246671,-500.0,0.00019452,3]
[350204157,1737688246680,-500.0,0.00019452,3]
[350204159,1737688246689,-500.0,0.00019452,3]
[350204161,1737688246698,-500.0,0.00019452,3]
[350204163,1737688246707,-500.0,0.00019452,3]
[350204165,1737688246716,-302.78,0.00019452,3]
[350204167,1737688246725,-500.0,0.00019452,3]
[350204169,1737688246734,-508.73224642,0.00019452,3]
[350205902,1737689006893,163.269985,0.00013973,2]
[350205904,1737689215126,-222.12282038,0.00018212,2]
[350205907,1737689297240,6284.50292732,0.0002,120]
[350206012,1737689432836,-167.659085,0.0001803,2]
[350206014,1737689432846,-146.88784183,0.00018212,2]
[350206551,1737689438166,-2368.86894449,0.00018212,2]
[350206553,1737689438176,-435.01047662,0.000189,2]
[350206555,1737689438186,-947.86202789,0.00019,2]
[350206558,1737689438195,-1928.17198046,0.00019078,2]
[350206560,1737689438205,-300.0,0.00019177,2]
[350206562,1737689438215,-156.08641151,0.00019178,2]
[350206564,1737689438224,-500.0,0.00019178,2]
[350206566,1737689438233,-500.0,0.00019178,2]
[350206568,1737689438242,-500.0,0.00019178,2]
[350206570,1737689438252,-500.0,0.00019178,2]
[350206572,1737689438261,-500.0,0.00019178,2]
[350206574,1737689438270,-500.0,0.00019178,2]
[350206576,1737689438280,-500.0,0.00019178,2]
[350206578,1737689438289,-500.0,0.00019178,2]
[350206580,1737689438299,-500.0,0.00019178,2]
[350206582,1737689438308,-500.0,0.00019178,2]
[350206584,1737689438318,-500.0,0.00019178,2]
[350206586,1737689438327,-500.0,0.00019178,2]
[350206588,1737689438337,-507.18458561,0.00019178,2]
[350206590,1737689438346,-508.05734775,0.00019178,2]
[350206592,1737689438355,-500.0,0.00019178,2]
[350206595,1737689438365,-500.0,0.00019178,2]
[350206598,1737689438375,-500.0,0.00019178,2]
[350206600,1737689438385,-500.0,0.00019178,2]
[350206602,1737689438394,-502.86728584,0.00019178,2]
[350206604,1737689438403,-508.89486439,0.00019178,2]
[350206606,1737689438412,-500.0,0.00019178,2]
[350206608,1737689438421,-500.0,0.00019178,2]
[350206610,1737689438431,-504.12994658,0.00019178,2]
[350206612,1737689438440,-500.0,0.00019178,2]
[350206614,1737689438449,-500.0,0.00019178,2]
[350206616,1737689438459,-500.0,0.00019178,2]
[350206618,1737689438468,-500.0,0.00019178,2]
[350206620,1737689438477,-500.0,0.00019178,2]
[350206622,1737689438487,-500.0,0.00019178,2]
[350206624,1737689438496,-500.0,0.00019178,2]
[350206626,1737689438506,-500.0,0.00019178,2]
[350206628,1737689438515,-500.0,0.00019178,2]
[350206630,1737689438524,-500.0,0.00019178,2]
[350206632,1737689438533,-1019.76,0.00019178,2]
[350206634,1737689438543,-500.0,0.00019178,2]
[350206636,1737689438552,-500.0,0.00019178,2]
[350206638,1737689438561,-500.0,0.00019178,2]
[350206640,1737689438571,-500.0,0.00019178,2]
[350206642,1737689438580,-500.0,0.00019178,2]
[350206644,1737689438589,-500.0,0.00019178,2]
[350206646,1737689438599,-500.0,0.00019178,2]
[350206648,1737689438608,-500.0,0.00019178,2]
[350206650,1737689438617,-500.0,0.00019178,2]
[350206652,1737689438627,-500.0,0.00019178,2]
[350206654,1737689438637,-500.0,0.00019178,2]
[350206656,1737689438646,-500.0,0.00019178,2]
[350206658,1737689438655,-500.0,0.00019178,2]
[350206660,1737689438665,-500.0,0.00019178,2]
[350206662,1737689438674,-500.0,0.00019178,2]
[350206664,1737689438684,-500.0,0.00019178,2]
[350206666,1737689438693,-141.13389032,0.00019178,2]
[350206844,1737689440395,-358.86610968,0.00019178,2]
[350206846,1737689440405,-500.0,0.00019178,2]
[350206848,1737689440415,-142.94387695,0.00019178,2]
[350207145,1737689443278,-357.05612305,0.00019178,2]
[350207148,1737689443288,-500.0,0.00019178,2]
[350207150,1737689443297,-500.0,0.00019178,2]
[350207152,1737689443306,-500.0,0.00019178,2]
[350207154,1737689443315,-500.0,0.00019178,2]
[350207156,1737689443324,-500.0,0.00019178,2]
[350207158,1737689443333,-500.0,0.00019178,2]
[350207160,1737689443343,-500.0,0.00019178,2]
[350207162,1737689443352,-500.0,0.00019178,2]
[350207164,1737689443361,-326.81375176,0.00019178,2]
[350207166,1737689443371,-500.0,0.00019178,2]
[350207167,1737689443382,-500.0,0.00019178,2]
[350207169,1737689443392,-500.0,0.00019178,2]
[350207172,1737689443401,-500.0,0.00019178,2]
[350207174,1737689443411,-500.0,0.00019178,2]
[350207176,1737689443420,-500.0,0.00019178,2]
[350207178,1737689443430,-32.13012519,0.00019178,2]
[350207182,1737689443462,-467.86987481,0.00019178,2]
[350207185,1737689443471,-500.0,0.00019178,2]
[350207189,1737689443480,-174.41232654,0.00019178,2]
[350207192,1737689443494,-325.58767346,0.00019178,2]
[350207195,1737689443503,-500.0,0.00019178,2]
[350207198,1737689443512,-500.0,0.00019178,2]
[350207200,1737689443522,-282.62181677,0.00019178,2]
[350207529,1737690048609,163.264663,0.00013973,2]
[350207599,1737690632643,-340.00698441,0.00018711,2]
[350207601,1737690632653,-2.41968376,0.000189,2]
[350207604,1737690632664,-337.58730065,0.000189,2]
[350207606,1737690632674,-288.54140713,0.00019177,2]
[350207610,1737690632702,-11.45859287,0.00019177,2]
[350207612,1737690632711,-3514.3011011,0.00019178,5]
[350207614,1737690632723,-1123.70777648,0.00019178,5]
[350207616,1737690632734,-1893.56,0.00019178,5]
[350208178,1737690638574,-3842.86265222,0.00019178,5]
[350208180,1737690638588,-4776.75427139,0.00019178,5]
[350208183,1737690638621,-4871.73767906,0.00019178,5]
[350208190,1737690638681,-220.19825168,0.00019178,5]
[350208192,1737690638691,-1592.13288747,0.00019178,5]
[350208243,1737690643460,-1226.95595149,0.00019178,5]
[350208244,1737690643470,-500.0,0.00019178,2]
[350208245,1737690643479,-500.0,0.00019178,2]
[350208246,1737690643488,-500.0,0.00019178,2]
[350208247,1737690643497,-495.5195217,0.00019178,2]
[350208248,1737690643506,-500.0,0.00019178,2]
[350208249,1737690643515,-500.0,0.00019178,2]
[350208250,1737690643524,-511.67540876,0.00019178,2]
[350208251,1737690643533,-500.0,0.00019178,2]
[350208252,1737690643543,-500.0,0.00019178,2]
[350208253,1737690643552,-500.0,0.00019178,2]
[350208254,1737690643561,-500.0,0.00019178,2]
[350208255,1737690643571,-500.0,0.00019178,2]
[350208256,1737690643580,-500.0,0.00019178,2]
[350208257,1737690643591,-500.0,0.00019178,2]
[350208258,1737690643601,-500.0,0.00019178,2]
[350208259,1737690643611,-500.0,0.00019178,2]
[350208260,1737690643620,-500.0,0.00019178,2]
[350208261,1737690643629,-500.0,0.00019178,2]
[350208262,1737690643638,-181.84911805,0.00019178,2]
[350208263,1737690643651,-318.15088195,0.00019178,2]
[350208264,1737690643660,-77.99437141,0.00019178,2]
[350208277,1737690903762,178.7602394,0.0002,20]
[350208279,1737690975506,163.259637,0.00013973,2]
[350208280,1737691148936,4355.73590974,0.00024,120]
[350208281,1737691163194,191.13863933,0.00024,120]
[350208282,1737691422744,203.0,0.00015056,2]
[350208284,1737691810928,163.264155,0.00013973,2]
[350208335,1737691832718,-177.14444,0.00017808,2]
[350208337,1737691832728,-271.31923761,0.00017912,2]
[350208342,1737691832772,-28.68076239,0.00017912,2]
[350208344,1737691832782,-15630.7457401,0.00017913,2]
[350208346,1737691832792,-411.862,0.0001848,2]
[350208348,1737691832802,-12297.55466767,0.00018573,2]
[350208350,1737691832812,-1409.54441948,0.00018671,5]
[350208351,1737691832822,-12297.55466767,0.00018671,2]
[350208353,1737691832831,-8715.10207878,0.00018758,5]
[350208527,1737691839227,-1406.45878718,0.00018758,5]
[350208529,1737691839237,-152.0,0.00018973,2]
[350208531,1737691839247,-350.1190471,0.00019078,2]
[350208533,1737691839257,-186.12,0.000191,13]
[350208535,1737691839267,-186.12,0.000191,14]
[350208537,1737691839278,-186.12,0.000191,15]
[350208539,1737691839288,-186.12,0.000191,10]
[350208541,1737691839298,-186.12,0.000191,11]
[350208543,1737691839308,-186.12,0.000191,12]
[350208545,1737691839318,-186.12,0.000191,13]
[350208547,1737691839328,-12297.55466768,0.00019134,2]
[350208550,1737691839338,-354.0163353,0.00019151,2]
[350208553,1737691839347,-354.0163353,0.00019151,2]
[350208556,1737691839358,-354.0163353,0.00019151,2]
[350208558,1737691839367,-354.0163353,0.00019151,2]
[350208560,1737691839377,-151.0,0.00019166,2]
[350208562,1737691839388,-348.831,0.00019178,2]
[350208564,1737691839398,-500.0,0.00019178,2]
[350208566,1737691839408,-500.0,0.00019178,2]
[350208568,1737691839417,-500.0,0.00019178,2]
[350208570,1737691839427,-500.0,0.00019178,2]
[350208572,1737691839435,-500.0,0.00019178,2]
[350208574,1737691839445,-500.0,0.00019178,2]
[350208576,1737691839456,-500.0,0.00019178,2]
[350208578,1737691839467,-154.482089,0.00019178,2]
[350208579,1737691839476,-500.0,0.00019178,2]
[350208582,1737691839486,-500.0,0.00019178,2]
[350208584,1737691839496,-500.0,0.00019178,2]
[350208586,1737691839506,-500.0,0.00019178,2]
[350208588,1737691839515,-151.0,0.00019178,2]
[350208590,1737691839526,-152.993567,0.00019178,2]
[350208592,1737691839538,-500.0,0.00019178,2]
[350208594,1737691839548,-309.32560131,0.00019178,2]
[350209056,1737691846726,-190.67439869,0.00019178,2]
[350209057,1737691846736,-500.0,0.00019178,2]
[350209058,1737691846746,-500.0,0.00019178,2]
[350209059,1737691846756,-500.0,0.00019178,2]
[350209060,1737691846765,-500.0,0.00019178,2]
[350209061,1737691846775,-500.0,0.00019178,2]
[350209062,1737691846785,-174.106228,0.00019178,2]
[350209063,1737691846795,-174.106228,0.00019178,2]
[350209064,1737691846803,-977.27,0.00019178,2]
[350209065,1737691846813,-500.0,0.00019178,2]
[350209066,1737691846823,-500.0,0.00019178,2]
[350209067,1737691846832,-500.0,0.00019178,2]
[350209068,1737691846843,-500.0,0.00019178,2]
[350209069,1737691846852,-500.0,0.00019178,2]
[350209070,1737691846861,-500.0,0.00019178,2]
[350209071,1737691846871,-500.0,0.00019178,2]
[350209072,1737691846880,-500.0,0.00019178,2]
[350209073,1737691846890,-500.0,0.00019178,2]
[350209074,1737691846901,-600.1,0.00019178,2]
[350209075,1737691846910,-500.0,0.00019178,2]
[350209076,1737691846920,-151.0,0.00019178,2]
[350209077,1737691846929,-500.0,0.00019178,2]
[350209078,1737691846939,-151.0,0.00019178,2]
[350209079,1737691846949,-24.70315493,0.00019178,2]
[350209081,1737692663190,163.272232,0.00013973,2]
[350209083,1737692801118,-222.12282038,0.0001822,2]
[350209188,1737693037793,-177.14444,0.00017808,2]
[350209190,1737693037803,-6674.3811377,0.00018117,2]
[350209192,1737693037812,-300.0,0.00018199,2]
[350209194,1737693037822,-4380.83893733,0.000182,3]
[350209196,1737693037831,-181.52417962,0.0001822,2]
[350209198,1737693037846,-383.78763246,0.000189,2]
[350209200,1737693037856,-281.2666588,0.000189,2]
[350209202,1737693037869,-26927.03000249,0.00019,2]
[350209204,1737693037878,-354.0163353,0.00019,2]
[350209207,1737693037888,-646.4397628,0.00019,2]
[350209208,1737693037898,-154.2311524,0.00019014,2]
[350209210,1737693037907,-215.3284382,0.00019014,2]
[350209212,1737693037918,-282.9973335,0.00019014,2]
[350209215,1737693037927,-310.2117988,0.00019014,2]
[350209216,1737693037936,-215.3284382,0.00019014,2]
[350209219,1737693037946,-153.0,0.00019014,2]
[350209221,1737693037956,-215.3284382,0.00019014,2]
[350209223,1737693037965,-152.0,0.00019067,2]
[350209225,1737693037974,-370.12594398,0.00019078,2]
[350209227,1737693037983,-215.3284382,0.000191,2]
[350209229,1737693037992,-354.0163353,0.000191,2]
[350209231,1737693038002,-154.2311524,0.000191,2]
[350209233,1737693038011,-813.17798231,0.00019166,3]
[350209235,1737693038020,-167.43253169,0.00019166,2]
[350209237,1737693038029,-368.69262901,0.00019177,2]
[350209239,1737693038038,-5060.78043298,0.00019178,5]
[350209242,1737693038057,-704.77220974,0.00019178,5]
[350209244,1737693038068,-151.0,0.00019178,2]
[350209246,1737693038078,-151.0,0.00019178,2]
[350209248,1737693038088,-151.0,0.00019178,2]
[350209250,1737693038098,-155.2676,0.00019178,2]
[350209252,1737693038108,-151.0,0.00019178,2]
[350209254,1737693038117,-151.0,0.00019178,2]
[350209256,1737693038127,-151.0,0.00019178,2]
[350209258,1737693038136,-152.554602,0.00019178,2]
[350209260,1737693038147,-176.63245234,0.00019178,2]
[350209261,1737693038156,-500.0,0.00019178,2]
[350209262,1737693038167,-500.0,0.00019178,2]
[350209263,1737693038176,-500.0,0.00019178,2]
[350209264,1737693038186,-500.0,0.00019178,2]
[350209265,1737693038195,-500.0,0.00019178,2]
[350209266,1737693038205,-500.0,0.00019178,2]
[350209267,1737693038214,-448.96227878,0.00019178,2]
[350209268,1737693038224,-500.0,0.00019178,2]
[350209269,1737693038233,-156.123328,0.00019178,2]
[350209270,1737693038242,-500.0,0.00019178,2]
[350209271,1737693038252,-500.0,0.00019178,2]
[350209272,1737693038262,-439.16,0.00019178,2]
[350209273,1737693038271,-512.15346549,0.00019178,2]
[350209275,1737693038281,-590.05,0.00019178,2]
[350209277,1737693038291,-392.87467224,0.00019178,2]
[350209278,1737693038300,-500.0,0.00019178,2]
[350209279,1737693038310,-500.0,0.00019178,2]
[350209280,1737693038319,-936.55,0.00019178,2]
[350209281,1737693038329,-500.0,0.00019178,2]
[350209282,1737693038339,-500.0,0.00019178,2]
[350209283,1737693038349,-500.0,0.00019178,2]
[350209284,1737693038358,-500.0,0.00019178,2]
[350209285,1737693038368,-500.0,0.00019178,2]
[350209286,1737693038377,-500.0,0.00019178,2]
[350209287,1737693038387,-500.0,0.00019178,2]
[350209288,1737693038396,-508.88506081,0.00019178,7]
[350209289,1737693038406,-500.0,0.00019178,2]
[350209290,1737693038415,-500.0,0.00019178,2]
[350209291,1737693038425,-500.0,0.00019178,2]
[350209292,1737693038434,-500.0,0.00019178,2]
[350209293,1737693038443,-500.0,0.00019178,2]
[350209294,1737693038453,-500.0,0.00019178,2]
[350209295,1737693038463,-500.0,0.00019178,2]
[350209296,1737693038472,-500.0,0.00019178,2]
[350209297,1737693038481,-500.0,0.00019178,2]
[350209298,1737693038491,-500.0,0.00019178,2]
[350209299,1737693038501,-504.27131377,0.00019178,2]
[350209300,1737693038510,-500.0,0.00019178,2]
[350209301,1737693038519,-500.0,0.00019178,2]
[350209302,1737693038529,-500.0,0.00019178,2]
[350209303,1737693038539,-500.0,0.00019178,2]
[350209304,1737693038549,-151.0,0.00019178,2]
[350209305,1737693038558,-151.0,0.00019178,2]
[350209306,1737693038567,-151.0,0.00019178,2]
[350209307,1737693038577,-151.0,0.00019178,2]
[350209308,1737693038586,-500.0,0.00019178,2]
[350209309,1737693038596,-500.0,0.00019178,2]
[350209310,1737693038742,-151.0,0.00019178,2]
[350209311,1737693038754,-151.0,0.00019178,2]
[350209312,1737693038763,-151.0,0.00019178,2]
[350209313,1737693038773,-151.0,0.00019178,2]
[350209314,1737693038782,-500.0,0.00019178,2]
[350209315,1737693038791,-500.0,0.00019178,2]
[350209316,1737693038801,-500.0,0.00019178,2]
[350209317,1737693038811,-500.0,0.00019178,2]
[350209318,1737693038821,-500.0,0.00019178,2]
[350209319,1737693038830,-500.0,0.00019178,2]
[350209320,1737693038842,-500.0,0.00019178,2]
[350209321,1737693038853,-500.0,0.00019178,2]
[350209322,1737693038862,-500.0,0.00019178,2]
[350209323,1737693038871,-500.0,0.00019178,2]
[350209324,1737693038880,-617.207157,0.00019178,2]
[350209325,1737693038891,-617.207157,0.00019178,2]
[350209326,1737693038901,-151.0,0.00019178,2]
[350209327,1737693038910,-151.0,0.00019178,2]
[350209328,1737693038921,-617.207157,0.00019178,2]
[350209329,1737693038930,-617.207157,0.00019178,2]
[350209330,1737693038940,-151.0,0.00019178,2]
[350209331,1737693038950,-151.0,0.00019178,2]
[350209332,1737693038959,-151.0,0.00019178,2]
[350209333,1737693038969,-151.0,0.00019178,2]
[350209334,1737693038978,-617.207157,0.00019178,2]
[350209335,1737693038987,-151.0,0.00019178,2]
[350209336,1737693038996,-617.207157,0.00019178,2]
[350209337,1737693039005,-154.160052,0.00019178,2]
[350209338,1737693039015,-617.207157,0.00019178,2]
[350209339,1737693039024,-617.207157,0.00019178,2]
[350209340,1737693039033,-273.519147,0.00019178,2]
[350209341,1737693039043,-151.0,0.00019178,2]
[350209342,1737693039052,-286.91131,0.00019178,2]
[350209343,1737693039062,-151.0,0.00019178,2]
[350209344,1737693039072,-151.0,0.00019178,2]
[350209345,1737693039082,-151.0,0.00019178,2]
[350209346,1737693039092,-151.0,0.00019178,2]
[350209347,1737693039101,-500.0,0.00019178,2]
[350209348,1737693039110,-610.8,0.00019178,2]
[350209349,1737693039121,-500.0,0.00019178,2]
[350209350,1737693039130,-151.0,0.00019178,2]
[350209351,1737693039140,-454.56216601,0.00019178,2]
[350209352,1737693039149,-154.995376,0.00019178,2]
[350209353,1737693039158,-500.0,0.00019178,2]
[350209354,1737693039169,-500.0,0.00019178,2]
[350209355,1737693039179,-151.0,0.00019178,2]
[350209356,1737693039188,-151.0,0.00019178,2]
[350209357,1737693039197,-151.0,0.00019178,2]
[350209359,1737693039207,-151.0,0.00019178,2]
[350209360,1737693039216,-266.42390849,0.00019178,2]
[350209362,1737693039226,-500.0,0.00019178,2]
[350209363,1737693039235,-500.0,0.00019178,2]
[350209364,1737693039244,-500.0,0.00019178,2]
[350209365,1737693039254,-500.0,0.00019178,2]
[350209366,1737693039264,-500.0,0.00019178,2]
[350209368,1737693039274,-500.0,0.00019178,2]
[350209370,1737693039283,-500.0,0.00019178,2]
[350209372,1737693039293,-500.0,0.00019178,2]
[350209373,1737693039302,-500.0,0.00019178,2]
[350209374,1737693039312,-500.0,0.00019178,2]
[350209375,1737693039321,-230.081343,0.00019178,2]
[350209376,1737693039331,-151.0,0.00019178,2]
[350209377,1737693039341,-151.0,0.00019178,2]
[350209378,1737693039350,-169.07007,0.00019178,2]
[350209379,1737693039360,-500.0,0.00019178,2]
[350209380,1737693039369,-500.0,0.00019178,2]
[350209382,1737693039379,-500.0,0.00019178,2]
[350209384,1737693039388,-166.19,0.00019178,2]
[350209385,1737693039397,-615.62,0.00019178,2]
[350209387,1737693039407,-151.0,0.00019178,2]
[350209388,1737693039419,-162.827855,0.00019178,2]
[350209390,1737693039428,-500.0,0.00019178,2]
[350209392,1737693039438,-500.0,0.00019178,2]
[350209394,1737693039448,-156.695605,0.00019178,2]
[350209396,1737693039458,-156.695605,0.00019178,2]
[350209397,1737693039468,-156.695605,0.00019178,2]
[350209398,1737693039479,-156.695605,0.00019178,2]
[350209399,1737693039489,-156.695605,0.00019178,2]
[350209400,1737693039504,-156.695605,0.00019178,2]
[350209401,1737693039514,-156.695605,0.00019178,2]
[350209402,1737693039527,-156.695605,0.00019178,2]
[350209403,1737693039538,-156.695605,0.00019178,2]
[350209405,1737693039547,-156.695605,0.00019178,2]
[350209406,1737693039557,-500.0,0.00019178,2]
[350209407,1737693039567,-500.0,0.00019178,2]
[350209408,1737693039576,-151.0,0.00019178,2]
[350209409,1737693039586,-151.0,0.00019178,2]
[350209410,1737693039596,-154.565545,0.00019178,2]
[350209411,1737693039606,-355.28,0.00019178,2]
[350209412,1737693039617,-151.0,0.00019178,2]
[350209413,1737693039627,-151.0,0.00019178,2]
[350209414,1737693039637,-151.0,0.00019178,2]
[350209415,1737693039647,-158.124823,0.00019178,2]
[350209416,1737693039658,-500.0,0.00019178,2]
[350209417,1737693039670,-1082.02,0.00019178,2]
[350209418,1737693039680,-500.0,0.00019178,2]
[350209419,1737693039690,-500.0,0.00019178,2]
[350209420,1737693039700,-151.0,0.00019178,2]
[350209421,1737693039710,-151.0,0.00019178,2]
[350209422,1737693039720,-151.0,0.00019178,2]
[350209423,1737693039729,-151.0,0.00019178,2]
[350209424,1737693039739,-151.0,0.00019178,2]
[350209425,1737693039749,-500.0,0.00019178,2]
[350209426,1737693039758,-151.0,0.00019178,2]
[350209428,1737693039768,-504.31240534,0.00019178,2]
[350209429,1737693039779,-618.63,0.00019178,2]
[350209430,1737693039789,-151.0,0.00019178,2]
[350209431,1737693039799,-151.0,0.00019178,2]
[350209432,1737693039808,-153.810764,0.00019178,2]
[350209433,1737693039818,-251.83842444,0.00019178,2]
[350209434,1737693039828,-500.0,0.00019178,2]
[350209435,1737693039838,-500.0,0.00019178,2]
[350209436,1737693039853,-378.13337309,0.00019178,2]
[350209437,1737693039862,-168.29,0.00019178,2]
[350209438,1737693039871,-151.0,0.00019178,2]
[350209439,1737693039882,-151.0,0.00019178,2]
[350209440,1737693039891,-536.83,0.00019178,2]
[350209441,1737693039900,-155.32224,0.00019178,2]
[350209442,1737693039910,-500.0,0.00019178,2]
[350209443,1737693039922,-500.0,0.00019178,2]
[350209444,1737693039932,-545.44,0.00019178,2]
[350209445,1737693039941,-394.22,0.00019178,2]
[350209446,1737693039951,-500.0,0.00019178,2]
[350209447,1737693039960,-500.0,0.00019178,2]
[350209448,1737693039970,-504.82755467,0.00019178,2]
[350209449,1737693039980,-151.0,0.00019178,2]
[350209450,1737693039992,-151.0,0.00019178,2]
[350209451,1737693040002,-151.0,0.00019178,2]
[350209452,1737693040012,-151.0,0.00019178,2]
[350209453,1737693040021,-151.0,0.00019178,2]
[350209454,1737693040033,-151.0,0.00019178,2]
[350209455,1737693040044,-151.0,0.00019178,2]
[350209456,1737693040053,-151.0,0.00019178,2]
[350209457,1737693040063,-151.0,0.00019178,2]
[350209458,1737693040073,-151.0,0.00019178,2]
[350209459,1737693040082,-151.0,0.00019178,2]
[350209460,1737693040092,-151.0,0.00019178,2]
[350209461,1737693040101,-151.0,0.00019178,2]
[350209462,1737693040111,-500.0,0.00019178,2]
[350209463,1737693040121,-500.0,0.00019178,2]
[350209464,1737693040130,-151.0,0.00019178,2]
[350209465,1737693040139,-151.0,0.00019178,2]
[350209466,1737693040149,-151.0,0.00019178,2]
[350209467,1737693040158,-151.0,0.00019178,2]
[350209468,1737693040170,-151.0,0.00019178,2]
[350209469,1737693040179,-283.273994,0.00019178,2]
[350209470,1737693040188,-179.088542,0.00019178,2]
[350209471,1737693040198,-159.1,0.00019178,2]
[350209472,1737693040207,-151.0,0.00019187,2]
[350209473,1737693040217,-151.47386051,0.00019187,2]
[350209474,1737693040226,-154.2311524,0.000192,2]
[350209475,1737693040235,-354.0163353,0.000192,2]
[350209476,1737693040245,-153.0,0.000192,2]
[350209477,1737693040254,-215.3284382,0.000192,2]
[350209478,1737693040264,-154.2311524,0.000192,2]
[350209479,1737693040274,-215.3284382,0.000192,2]
[350209480,1737693040283,-354.0163353,0.000192,2]
[350209481,1737693040293,-154.2311524,0.000192,2]
[350209482,1737693040302,-215.3284382,0.000192,2]
[350209483,1737693040311,-154.2311524,0.000192,2]
[350209484,1737693040321,-153.0,0.000192,2]
[350209485,1737693040332,-354.0163353,0.000192,2]
[350209486,1737693040342,-151.0,0.00019215,2]
[350209487,1737693040352,-397.626587,0.00019257,2]
[350209488,1737693040361,-215.3284382,0.000193,2]
[350209489,1737693040371,-153.0,0.000193,2]
[350209490,1737693040380,-297.7342867,0.000193,2]
[350209491,1737693040390,-154.2311524,0.000193,2]
[350209492,1737693040400,-153.0,0.000193,2]
[350209493,1737693040410,-354.0163353,0.000193,2]
[350209494,1737693040421,-215.3284382,0.000193,2]
[350209495,1737693040430,-151.0,0.000193,2]
[350209496,1737693040441,-500.0,0.00019314,2]
[350209497,1737693040450,-303.93375177,0.00019314,2]
[350209498,1737693040460,-500.0,0.00019314,2]
[350209499,1737693040470,-500.0,0.00019314,2]
[350209500,1737693040479,-500.0,0.00019314,2]
[350209501,1737693040489,-500.0,0.00019314,2]
[350209502,1737693040501,-500.0,0.00019314,2]
[350209503,1737693040511,-500.0,0.00019314,2]
[350209504,1737693040520,-500.0,0.00019314,2]
[350209505,1737693040530,-209.82204828,0.00019314,2]
[350209506,1737693040539,-500.0,0.00019314,2]
[350209507,1737693040549,-572.21756291,0.00019314,2]
[350209508,1737693040558,-651.99428752,0.00019314,2]
[350209509,1737693040568,-500.0,0.00019314,2]
[350209510,1737693040577,-284.43917558,0.00019314,2]
[350209511,1737693040586,-500.0,0.00019314,2]
[350209512,1737693040596,-500.0,0.00019314,2]
[350209513,1737693040606,-500.0,0.00019314,2]
[350209514,1737693040615,-500.0,0.00019314,2]
[350209515,1737693040625,-151.0,0.00019315,2]
[350209516,1737693040635,-151.0,0.00019315,2]
[350209517,1737693040644,-151.0,0.00019315,2]
[350209518,1737693040654,-267.179234,0.00019315,2]
[350209519,1737693040663,-500.0,0.00019315,3]
[350209520,1737693040674,-500.0,0.00019315,3]
[350209521,1737693040684,-500.0,0.00019315,3]
[350209522,1737693040694,-500.0,0.00019315,3]
[350209523,1737693040703,-500.0,0.00019315,3]